Cogmind - Beta 17 @@@ ROGUE MODE // 2026.07.07 @ 23:03:40 Player: Zish Result: Self-destructed Performance ------------- Evolutions (1) 500 Regions Visited (3) 600 Robots Destroyed (28) 140 Value Destroyed (440) 440 Prototype IDs (2) 40 Alien Tech Used (0) 0 Bonus (0) 0 TOTAL SCORE: 1720 Bonus ------- None Cogmind --------- Core Integrity 297/400 Matter 142/300 Energy 100/100 System Corruption 0% Temperature Cool (0) Movement Treading (480) Ox4 Location -9/Materials Parts ------- > --- POWER (2) -------- (None) > --- PROPULSION (2) --- Light Treads > --- UTILITY (3) ------ Huge Storage Unit Hacking Suite > --- WEAPON (2) ------- Light Cannon Hammer > --- INVENTORY (25) --- Light Nuclear Core Light Treads Light Treads ECM Suite Hacking Suite EM Pulse Gun Assault Rifle Light Cannon Light Cannon Grenade Launcher Datajack Peak State ------------ > --- POWER ------------ Ion Engine Light Ion Engine > --- PROPULSION ------- Light Treads Light Treads > --- UTILITY ---------- Huge Storage Unit Hacking Suite > --- WEAPON ----------- Light Cannon Grenade Launcher > --- INVENTORY -------- Light Nuclear Core Light Treads ECM Suite EM Pulse Gun Assault Rifle Light Cannon Light Cannon Datajack Hammer [Rating: 11] Favorites ----------- Power Ion Engine Engine Ion Engine Propulsion Light Treads Treads Light Treads Utility Huge Storage Unit Storage Huge Storage Unit Hackware Hacking Suite Weapon Grenade Launcher Energy Gun EM Pulse Gun Ballistic Gun Assault Rifle Ballistic Cannon Light Cannon Launcher Grenade Launcher Impact Weapon Hammer Build | -11 -10 -10 -9 ------- Run | Yrd Mat Min Mat Slots Evolved 2 | . . . 2 Power 1 | . . . 1 Propulsion . | . . . . Utility 1 | . . . 1 Weapon . | . . . . Parts Attached 15 | 7 4 . 4 Power 2 | 1 . . 1 Engine 2 | 1 . . 1 Core . | . . . . Reactor . | . . . . Propulsion 3 | 2 . . 1 Treads 3 | 2 . . 1 Leg . | . . . . Wheel . | . . . . Hover . | . . . . Flight . | . . . . Utility 4 | 1 2 . 1 Device . | . . . . Storage 3 | 1 2 . . Processor . | . . . . Hackware 1 | . . . 1 Protection . | . . . . Artifact . | . . . . Weapon 6 | 3 2 . 1 Energy Gun 2 | 2 . . . Energy Cannon . | . . . . Ballistic Gun 1 | 1 . . . Ballistic Cannon 1 | . 1 . . Launcher 1 | . 1 . . Special Weapon . | . . . . Impact Weapon 1 | . . . 1 Slashing Weapon . | . . . . Piercing Weapon . | . . . . Special Melee Weapon . | . . . . Unidentified Prototypes . | . . . . Parts Lost 3 | . . . 3 Power 2 | . . . 2 Propulsion 1 | . . . 1 Utility . | . . . . Weapon . | . . . . Highest Loss Streak 3 | . . . 3 To Critical Strikes . | . . . . Average Backups 7 | . 5 10 10 Power 1 | . 1 1 1 Propulsion . | . . 1 1 Utility 1 | . 1 2 1 Weapon 3 | . 1 4 5 Tool/Special . | . . . . Unused Backups 6 | . . . 6 Power 1 | . . . 1 Propulsion 1 | . . . 1 Utility 1 | . . . 1 Weapon 2 | . . . 2 Tool/Special 1 | . . . 1 Average Slot Usage (%) 84 | . 84 85 81 Engine 14 | . 14 14 18 Treads 27 | . 28 28 21 Storage 13 | . 14 14 11 Hackware 1 | . . . 8 Energy Gun 1 | . 3 . . Ballistic Gun 4 | . 10 . . Ballistic Cannon 8 | . 3 14 11 Launcher 12 | . 10 14 10 Peak Build Rating 11 | 6 7 7 11 Average Rating 6 | 4 6 7 10 On Entrance 5 | . 6 7 7 Avg Prop Armor Cover (%) . | . . . . Naked Turns . | . . . . Heaviest Build 94 | 14 91 91 94 Greatest Support 40 | 40 40 40 40 Greatest Overweight (x) 2 | . 2 2 2 Average Overweight (x) 1 | . . 2 2 Largest Inventory Capacity 25 | 8 25 25 25 Average Capacity 21 | 7 18 25 25 Most Carried 12 | 2 9 11 12 Average Carried 8 | . 5 10 9 Final Capacity 25 | 8 25 25 25 Final Carried 11 | 1 9 11 11 Class Distribution -------------------- 100% | Mutant Dominant Class ---------------- Mutant | -10/Materials Mutant | -10/Mines Mutant | -9/Materials Resources | -11 -10 -10 -9 ----------- Run | Yrd Mat Min Mat Matter Collected 516 | 176 247 56 37 Remotely . | . . . . Salvage Created 346 | . 123 27 196 Parts 49 | . 21 1 27 Haulers Intercepted 2 | . 1 . 1 Recyclers Shooed . | . . . . Parts Field Recycled . | . . . . Retrieved Matter . | . . . . Parts Self-Destructed . | . . . . Prevented . | . . . . Parts Restored . | . . . . Kills | -11 -10 -10 -9 ------- Run | Yrd Mat Min Mat Combat Hostiles Destroyed 16 | . 6 2 8 Cannons 2 | . . 1 1 AOE 14 | . 6 1 7 Classes Destroyed 7 | . 6 1 . Worker 3 | . 1 . 2 Builder 4 | . 2 . 2 Tunneler 1 | . 1 . . Hauler 2 | . 1 . 1 Operator 2 | . 1 . 1 Swarmer 9 | . 6 . 3 Grunt 7 | . . 2 5 Best Kill Streak 7 | . 6 2 7 Combat Bots Only 5 | . 3 2 5 Max Kills in Single Turn 3 | . 3 2 3 Gunslinging . | . . . . Exploded 2 | . 2 1 2 Melee . | . . . . Uniques/NPCs Destroyed . | . . . . Combat | -11 -10 -10 -9 -------- Run | Yrd Mat Min Mat Hostile Shots Fired 83 | . 9 6 68 Missed 26 | . 4 2 20 Hits 57 | . 5 4 48 Projectile 57 | . 5 4 48 Critical Strikes 1 | . . . 1 Damage Taken 757 | . 41 133 583 Core 122 | . 7 12 103 Absorbed by Shields . | . . . . Core Remaining (%) 96 | 100 . 92 . Volleys Fired 40 | . 21 4 15 Largest 2 | . 2 2 2 Hottest 60 | . 60 60 60 Shots Fired 62 | . 28 8 26 Gun 23 | . 23 . . Cannon 19 | . . 4 15 Launcher 20 | . 5 4 11 Special . | . . . . Kinetic 40 | . 21 4 15 Thermal . | . . . . Explosive 20 | . 5 4 11 Electromagnetic 2 | . 2 . . Robot Hit Streak 6 | . 5 . 6 Robot Miss Streak 4 | . 3 . 4 Penetration Max . | . . . . Secondary Targets . | . . . . Shots Hit Robots 32 | . 14 . 18 Core Hits 42 | . 18 4 20 Critical Kills . | . . . . Critical Parts Destroyed 1 | . 1 . . Critical Strikes 1 | . 1 . . Destroy 1 | . 1 . . Melee Attacks 3 | . . . 3 Impact 3 | . . . 3 Slashing . | . . . . Piercing . | . . . . Sneak Attacks . | . . . . Combat Hostiles . | . . . . Follow-up Attacks . | . . . . Damage Inflicted 1966 | . 705 200 1061 Guns 183 | . 183 . . Cannons 155 | . . 19 136 Explosions 1588 | . 522 181 885 Melee 40 | . . . 40 Ramming . | . . . . Kinetic 325 | . 170 19 136 Thermal 310 | . . . 310 Explosive 1278 | . 522 181 575 Electromagnetic 13 | . 13 . . Impact 40 | . . . 40 Slashing . | . . . . Piercing . | . . . . Highest Corruption . | . . . . Average Corruption . | . . . . Corruption Purged . | . . . . Corruption Blocked . | . . . . Overload Shots . | . . . . Overflow Damage 60 | . . . 60 Projectiles . | . . . . Explosions 60 | . . . 60 Melee . | . . . . Knockbacks 2 | . . . 2 Impact . | . . . . Kinetic 2 | . . . 2 Secondary . | . . . . Self-Inflicted Damage 46 | . . . 46 Shots 2 | . . . 2 Rammed . | . . . . Targets Rammed . | . . . . Kicked . | . . . . Crushed . | . . . . Highest Temperature 75 | . . 30 75 Average Temperature 34 | . . 21 37 Received Heat Transfer 225 | . . 30 195 Siege Activations . | . . . . Martial Activations . | . . . . Shielding Activations . | . . . . Robots Disrupted . | . . . . Combat Hostiles . | . . . . Robots Corrupted . | . . . . Combat Hostiles . | . . . . Parts Fried . | . . . . Impact Corruptions . | . . . . Robots Melted . | . . . . Combat Hostiles . | . . . . Parts Melted . | . . . . Heat Transferred 200 | . . . 200 Parts Sabotaged . | . . . . Parts Stolen . | . . . . Parts Stripped . | . . . . Power Chain Reactions . | . . . . Alert | -11 -10 -10 -9 ------- Run | Yrd Mat Min Mat Maximum Alert Level 1 | . . . 1 Low Security (%) 98 | 100 100 100 89 Level 1 1 | . . . 10 Level 2 . | . . . . Level 3 . | . . . . Level 4 . | . . . . Level 5 . | . . . . High Security . | . . . . Max Security . | . . . . Peak Influence 270 | . 152 51 270 Initial . | . . . . Average 21 | . 33 2 48 Influence Increases 622 | . 220 53 349 Destroy 0b10 Robot/C 320 | . 120 40 160 Destroy 0b10 Robot/NC 60 | . 30 . 30 Destroy Leader 54 | . 22 10 22 Successful Hack 33 | . 19 . 14 Disable Machine 30 | . . . 30 Destroy Structure 95 | . 29 3 63 Lose Combat Pursuer 30 | . . . 30 Influence Decreases 382 | . 220 53 109 Time Decay 352 | . 220 53 79 Lost Part 30 | . . . 30 Squads Dispatched 2 | . . . 2 Investigation . | . . . . Extermination . | . . . . Reinforcement 2 | . . . 2 Assault . | . . . . Garrison . | . . . . Intercept . | . . . . Searches Triggered . | . . . . Construction Impeded 1 | . . . 1 Haulers Reinforced . | . . . . Active Scanning Responses . | . . . . Cargo Convoy Interrupts . | . . . . Stealth | -11 -10 -10 -9 --------- Run | Yrd Mat Min Mat Distress Signals 4 | . 1 . 3 Communications Jammed . | . . . . Distress Signals . | . . . . Times Spotted 31 | . 11 2 18 Peak Tracking Total 8 | . 3 2 8 Tactical Retreats 2 | . . . 2 Traps | -11 -10 -10 -9 ------- Run | Yrd Mat Min Mat Traps Triggered 1 | . . 1 . Indirectly . | . . . . Trap Hack Attempts . | . . . . Triggered . | . . . . Disarmed . | . . . . Reprogrammed . | . . . . Reused . | . . . . Traps Extracted . | . . . . Installed . | . . . . Triggered . | . . . . Machines | -11 -10 -10 -9 ---------- Run | Yrd Mat Min Mat Machines Disabled 2 | . . . 2 Max in Single Turn 2 | . . . 2 Machines Repaired . | . . . . Machines Dismantled . | . . . . Machines Sabotaged . | . . . . Overloaded Fab Kills . | . . . . Hacking | -11 -10 -10 -9 --------- Run | Yrd Mat Min Mat Machines Accessed 7 | . 5 1 1 Terminals 6 | . 5 . 1 Fabricators . | . . . . Repair Stations . | . . . . Recycling Units . | . . . . Scanalyzers . | . . . . Garrison Access . | . . . . Total Hacks 16 | . 11 1 4 Successful 7 | . 4 1 2 Failed 9 | . 7 . 2 Catastrophic 1 | . 1 . . Database Lockouts . | . . . . Manual 13 | . 9 . 4 Terminals 15 | . 11 . 4 Fabricators . | . . . . Repair Stations . | . . . . Recycling Units . | . . . . Scanalyzers . | . . . . Garrison Access . | . . . . Terminal Hacks 5 | . 3 1 1 Prototype ID Bank 1 | . 1 . . Open Door 1 | . . 1 . Branch Access Points 2 | . 1 . 1 Zone Layout 1 | . 1 . . Fabricator Hacks . | . . . . Repair Station Hacks . | . . . . Recycling Unit Hacks . | . . . . Scanalyzer . | . . . . Garrison Access Hacks . | . . . . Unauthorized Hacks 2 | . 1 . 1 Terminals 2 | . 1 . 1 Operators 2 | . 1 . 1 Fabricators . | . . . . Repair Stations . | . . . . Recycling Units . | . . . . Scanalyzers . | . . . . Garrison Access . | . . . . Data Cores Recovered 1 | . 1 . . Used . | . . . . Hacking Detections 4 | . 3 . 1 Full Trace Events 2 | . 2 . . Feedback Events . | . . . . Feedback Blocked . | . . . . Robot Schematics Acquired . | . . . . Robots Built . | . . . . Authchips . | . . . . Time . | . . . . Total Robot Build Rating . | . . . . Part Schematics Acquired . | . . . . Parts Built . | . . . . Authchips . | . . . . Time . | . . . . Total Part Build Rating . | . . . . Part Studies Acquired . | . . . . Parts Repaired . | . . . . Time . | . . . . Parts Recycled . | . . . . Recycled Matter . | . . . . Retrieved Matter . | . . . . Retrieved Components . | . . . . Parts Scanalyzed . | . . . . Part Schematics Acquired . | . . . . Parts Damaged . | . . . . Bothacking | -11 -10 -10 -9 ------------ Run | Yrd Mat Min Mat Used RIF Installer . | . . . . Robots Hacked . | . . . . Non-combat . | . . . . Combat . | . . . . Robot Hacks Applied . | . . . . Relay Couplers Released . | . . . . Fabnet Peak Effective % . | . . . . Robots Rewired . | . . . . Allies Hacked . | . . . . Hacks Repelled . | . . . . Allies | -11 -10 -10 -9 -------- Run | Yrd Mat Min Mat Total Allies . | . . . . Largest Group . | . . . . Highest-Rated Group . | . . . . Highest-Rated Ally . | . . . . Total Orders . | . . . . Ally Attacks . | . . . . Total Damage . | . . . . Kills . | . . . . Allies Corrupted . | . . . . Allies Melted . | . . . . Intel | -11 -10 -10 -9 ------- Run | Yrd Mat Min Mat Active Infowar (turns) . | . . . . Robot Analysis Total . | . . . . Derelict Logs Recovered 1 | . . 1 . Drone Launches . | . . . . Drone Recoveries . | . . . . Exploration | -11 -10 -10 -9 ------------- Run | Yrd Mat Min Mat Turns Passed 2974 | 72 1280 1274 348 Spaces Moved 1109 | 39 585 394 91 Core 2 | 2 . . . Treads 1107 | 37 585 394 91 Legs . | . . . . Wheels . | . . . . Hover . | . . . . Flight . | . . . . Fastest Speed 50 | 50 160 320 320 Average Speed 254 | 154 207 320 320 Slowest Speed 320 | 160 320 320 320 Overloaded Moves . | . . . . Propulsion Burnouts . | . . . . Robots Hopped . | . . . . Potential Cave-ins . | . . . . Cave-ins Triggered . | . . . . Exploration Rate (%) 50 | 3 91 90 18 Regions Visited 3 Branch Regions 1 Pre-discovered Areas . | . . . . Known Exits Taken 1 | . 1 . . Unknown Exits Taken 2 | 1 . 1 . Scrap Searched 2 | . . 2 . Spaces Dug . | . . . . Terrain Destroyed 106 | . 30 3 73 Melee . | . . . . Projectile . | . . . . AOE 106 | . 30 3 73 Terrain Rammed . | . . . . Walls Destroyed . | . . . . Machines Disabled . | . . . . Actions | -11 -10 -10 -9 --------- Run | Yrd Mat Min Mat Total 1195 | 49 629 401 116 Wait 9 | . 7 2 . Move 1106 | 38 584 393 91 Hop . | . . . . Pick Up 13 | 2 7 2 2 Fast Attach 9 | 6 3 . . Attach 5 | 1 1 . 3 Detach 6 | 1 4 . 1 Swap 1 | . . . 1 Drop 3 | 1 2 . . Fire 40 | . 21 4 15 Melee 3 | . . . 3 Ram . | . . . . Kick . | . . . . Crush . | . . . . Escape Stasis . | . . . . Rewire . | . . . . Trap . | . . . . Miscellaneous . | . . . . Route ------- -11/Scrapyard -10/Materials (discovered 6 exits: *Mat x3 / *Min x2 / [*Sub]) -10/Mines (discovered 3 exits: *Mat x2 / [*Sub]) -9/Materials (discovered 2 exits: Min x2) History --------- Turn | Location | Event 13 | -11/Scrapyard | Discovered new exit (range 16) 73 | -11/Scrapyard | Entered Materials 74 | -10/Materials | Met a group of wandering Federalists 163 | -10/Materials | Discovered new exit (range 14) 173 | -10/Materials | Identified exit to Mines 254 | -10/Materials | Discovered new exit (range 14) 305 | -10/Materials | Build established: Mutant 523 | -10/Materials | Discovered new exit (range 15) 817 | -10/Materials | Discovered new exit (range 13) 1074 | -10/Materials | Discovered new exit (range 15) 1353 | -10/Materials | Entered Mines 1392 | -10/Mines | Met a Derelict bent on vengeance 1514 | -10/Mines | Learned Materials terminal intel 1613 | -10/Mines | Discovered new exit (range 11) 1858 | -10/Mines | Met a Derelict who couldn't figure out how to use a Trap Extractor 1979 | -10/Mines | Found a hidden stash of uninstalled traps 2087 | -10/Mines | Discovered new exit (range 8) 2294 | -10/Mines | Discovered new exit (range 8) 2627 | -10/Mines | Entered Materials 2627 | -9/Materials | Evolved 2 slots: Power x1, Utility x1 2628 | -9/Materials | Loaded intel: 12 terminal locations 2695 | -9/Materials | Identified exit to Mines 2975 | -9/Materials | Self-destructed Last Messages --------------- 02958_ K-01 Serf collects debris. 02959_ U-05 Engineer lays Concrete. 02962_ K-01 Serf cleans the Terminal. 02962_ U-05 Engineer lays Concrete. 02963_ R-06 Scavenger collects Wheel. 02963_ U-05 Engineer lays Concrete. 02964_ U-05 Engineer builds a Wall. 02965_ U-05 Engineer lays Concrete. 02968_ R-06 Scavenger collects Lgt. Treads. 02968_ U-05 Engineer lays Concrete. 02969_ Lgt. Treads destroyed. 02969_ U-05 Engineer lays Concrete. 02971_ R-06 Scavenger collects Prototype Energy Cannon. 02971_ U-05 Engineer builds a Wall. 02971_ U-05 Engineer lays Concrete. 02972_ Ion Engine destroyed. 02973_ U-05 Engineer lays Concrete. 02975_ R-06 Scavenger collects Prototype Energy Cannon. Map ----- +----------------------------------------------------+ | ???????# # #??????#"R """#???????????? | | ???????# # #??????#""" ""?????????????? | | ???????########### #??????? ???????????????? | | ?????????????????# ##########+############### ?? | | ??????????????##?# ^ ? | | ???????????"""""## ? | | ?????? %[ *%=^ ? | | ?????? #####+########+############???? | | ?????? ??? ??# [ ! #?????????? | | ?????? #?#=== ## """ ##?????????? | | ???????? #?#== ## """ #??????????? | | ????????#"" % "?#== ## """ #??????????? | | ????????# ?# ## #??????????? | | ????????# # ## ## #??????????? | | ????????# r% ######### * #??????????? | | ??????+#### u] ####### "T" #??????????? | | ??????? # % = ] + #??????????? | | ?????? # u #######+########??????????? | | ?????? # ####??# #?????????????????? | | ?????? %= #??# #?????????????????? | | ??????????# # % T ##?# #?????????????????? | | ??????????????# #u #?# #?????????????????? | | ??????????????# # ]u * #?# #?????????????????? | | ??????????????# + ]! % ### #?????????????????? | | ??????????????## # %! [s g #?????????????????? | | ???????????????# ?### @sg## #?????????????????? | | ??????????????"" ????##sY"T" /s#?????????????????? | | ?????????????" ??????# # #?????????????????? | | ?????????????"!???????# ! # ??????????????????? | | ?????????????"???>????#!! # ??????????????????? | | ?????????????????????? !! ] # ????????????????""" | | ?????????????????????##!! # ????????????????"T" | | ??????????????????????########???????????????????? | | ?????????????????????????????????????????????????? | | ?????????????????????????????????????????????????? | | ?????????????????????????????????????????????????? | | ?????????????????????????????????????????????????? | | ?????????????????????????????????????????????????? | | ?????????????????????????????????????????????????? | | ?????????????????????????????????????????????????? | | ?????????????????????????????????????????????????? | | ?????????????????????????????????????????????????? | | ?????????????????????????????????????????????????? | | ?????????????????????????????????????????????????? | | ?????????????????????????????????????????????????? | | ?????????????????????????????????????????????????? | | ?????????????????????????????????????????????????? | | ?????????????????????????????????????????T???????? | | ?????????????????????????????????????????????????? | | ?????????????????????????????????????????????????? | +----------------------------------------------------+ Best States ------------- Heat Dissipation 28 Energy Generation 15 Energy Capacity 275 Matter Stores 300 Matter Capacity 300 Sight Range 16 Terrain Scan Density 10 Evasion (%) 40 Recoil Reduction 2 Offensive Hacking 10 Item Schematics ----------------- None Robot Schematics ------------------ None Fabricated ------------ Nothing Repaired ---------- Nothing Studied --------- None Alien Tech Used ----------------- None Achievements -------------- None Challenges ------------ None Game ------ Seed SniperVariableFacilitator Manual? 0 Play Time 00:13:14 Cumulative 35.0 hours Start 2026.07.07 @ 22:52:45 End 2026.07.07 @ 23:03:40 Sessions 1 Manual Loads 0 Difficulty Rogue Special Mode None Game No. 96 Rogue 96 Adventurer 0 Explorer 0 Win Type - Total 0 Types 0/0/0/0/0/0/0/0/0/0 Lore% 19 Gallery% 28 Achievement% 23 Wizard Run 0 Options --------- Layout 1 ASCII 0 Keyboard 1 Movement Vi Keybinds 0 Fullscreen 1 Font 24/Smallcaps Map View 50x35 Zoom Use 0% Tactical HUD 1 Map Filters NONE Filters NONE Steam 1 RUN: 44a06411-f7a2-40f2-ba81-7ec203374c08